bitfinex-derivatives/quotes_ETHF0:USTF0_20210107
["timestamp","ask_amount","ask_price","bid_price","bid_amount"]
[1609979525054,4.00959,1208.1,1199.8,11.19964473]
[1609979525254,4.00959,1207.3,1207.0,4.00959]
[1609979526856,5.66619,1207.3,1207.0,4.00959]
[1609979527056,5.66619,1207.3,1207.2,4.00959]
[1609979527257,5.66619,1207.3,1207.2,6.69969]
[1609979527659,4.00959,1207.3,1207.2,6.69969]
[1609979528462,4.00959,1207.3,1207.2,2.6901]
[1609979531567,5.6556,1208.8,1207.2,2.6901]
[1609979531966,3.674,1208.9,1207.2,2.6901]
[1609979532167,3.674,1208.9,1206.7,4.00959]
[1609979533067,4.00959,1207.5,1207.0,4.00959]
[1609979533470,4.00959,1207.5,1202.5,40.992]
[1609979534170,4.00959,1207.5,1202.5,30.0]
[1609979534668,4.00959,1207.5,1206.3,66.0139]
[1609979534968,4.00959,1207.5,1206.3,3.4125]
[1609979535169,30.0,1208.6,1206.7,4.00959]
[1609979535369,30.0,1208.6,1206.7,7.05029]
[1609979537172,4.00959,1206.8,1206.7,7.05029]
[1609979537572,2.9966,1208.7,1206.7,7.05029]
[1609979538173,30.0,1208.8,1206.7,7.05029]
[1609979538676,3.674,1208.9,1206.7,7.05029]
[1609979539372,3.674,1208.9,1207.3,4.00959]
[1609979539573,3.674,1208.9,1207.3,6.06989]
[1609979541279,3.674,1208.9,1207.6,4.00959]
[1609979543279,3.674,1208.9,1208.0,4.00959]
[1609979544279,11.051,1209.7,1208.0,4.00959]
[1609979545281,4.00959,1208.1,1208.0,4.00959]
[1609979545682,4.00959,1208.1,1207.3,2.0603]
[1609979545883,4.00959,1208.1,1206.8,5.6755]
[1609979547287,2.2289,1209.2,1207.4,4.00959]
[1609979547887,2.2289,1209.2,1206.8,5.6755]
[1609979549189,2.2289,1209.2,1206.8,54.2284]
[1609979549390,4.00959,1207.6,1207.5,4.00959]
[1609979550191,2.2289,1209.2,1207.5,4.00959]
[1609979551390,2.2289,1209.2,1207.7,4.00959]
[1609979551991,3.2136,1209.5,1207.7,4.00959]
[1609979552191,41.051,1209.7,1207.7,4.00959]
[1609979552391,41.051,1209.7,1206.8,54.2284]
[1609979553391,4.00959,1207.6,1207.3,4.00959]
[1609979554293,4.00959,1207.6,1206.8,54.2284]
[1609979555393,4.00959,1207.2,1207.0,4.00959]
[1609979556096,1.6709,1207.2,1207.0,4.00959]
[1609979556294,3.674,1208.9,1207.0,4.00959]
[1609979557294,5.3525,1208.9,1207.0,4.00959]
[1609979557494,5.3525,1208.9,1206.8,48.5529]
[1609979557495,4.00959,1207.6,1207.3,4.00959]
[1609979559399,4.00959,1207.6,1207.5,4.00959]
[1609979559798,4.00959,1207.6,1206.8,48.5529]
[1609979561398,3.674,1208.9,1207.4,4.00959]
[1609979562999,11.051,1209.7,1207.4,4.00959]
[1609979563299,41.051,1209.7,1207.4,4.00959]
[1609979563500,4.00959,1208.1,1207.9,4.00959]
[1609979563700,41.051,1209.7,1207.9,4.00959]
[1609979564202,3.674,1209.7,1207.9,4.00959]
[1609979565003,3.674,1209.7,1206.8,5.7673]
[1609979565405,4.00959,1208.2,1207.9,4.00959]
[1609979565605,5.64709,1208.2,1206.8,5.7673]
[1609979565903,4.00959,1208.2,1206.8,5.7673]
[1609979567512,4.00959,1208.2,1207.9,4.00959]
[1609979568508,4.00959,1208.2,1206.8,5.7673]
[1609979569111,4.00959,1208.2,1206.7,3.0407]
[1609979569311,4.00959,1208.2,1206.4,5.7929]
[1609979569514,4.00959,1207.5,1207.2,4.00959]
[1609979569812,4.00959,1207.5,1206.4,5.7929]
[1609979570013,4.00959,1207.5,1206.3,3.4125]
[1609979570213,4.00959,1207.5,1203.3,5.5568]
[1609979570413,4.00959,1207.5,1203.4,30.0]
[1609979570612,4.00959,1207.5,1203.4,32.8126]
[1609979571412,1.6683,1208.2,1207.1,4.00959]
[1609979571613,30.0,1208.4,1203.4,32.8126]
[1609979572215,35.9654,1208.4,1203.4,32.8126]
[1609979572414,35.9654,1208.4,1206.4,67.6731]
[1609979572613,5.9654,1208.4,1206.4,71.0787]
[1609979572815,3.674,1208.5,1206.4,71.0787]
[1609979573015,5.3341,1208.5,1206.4,71.0787]
[1609979573515,5.3341,1208.5,1207.2,4.00959]
[1609979573715,3.674,1208.5,1207.2,6.78309]
[1609979573916,5.3502,1208.5,1207.2,6.78309]
[1609979574116,3.674,1208.5,1207.2,6.78309]
[1609979575519,4.00959,1207.8,1207.4,4.00959]
[1609979576918,4.00959,1207.8,1207.2,2.7735]
[1609979577518,4.00959,1207.5,1207.2,6.78309]
[1609979579622,4.00959,1207.3,1207.2,6.78309]
[1609979580224,4.00959,1207.3,1207.2,2.7735]
[1609979580423,4.00959,1207.3,1206.8,49.6576]
[1609979581425,4.00959,1206.9,1206.8,49.6576]
[1609979581825,4.00959,1206.9,1206.4,3.4056]
[1609979582327,4.00959,1206.9,1206.1,4.00959]
[1609979583335,4.00959,1206.9,1205.9,55.5663]
[1609979583529,4.00959,1206.2,1205.9,55.5663]
[1609979585628,4.00959,1206.0,1205.9,55.5663]
[1609979586430,30.0,1207.6,1205.9,55.5663]
[1609979586829,30.0,1207.6,1205.9,58.9062]
[1609979587530,4.00959,1206.0,1205.9,58.9062]
[1609979589435,5.66549,1206.0,1205.9,58.9062]
[1609979590437,4.00959,1206.0,1205.9,58.9062]
[1609979591136,4.00959,1206.0,1205.9,3.3399]
[1609979591336,4.00959,1206.0,1204.3,5.9056]
[1609979591536,4.00959,1205.3,1205.0,4.00959]
[1609979592937,4.00959,1205.3,1201.9,35.793]
[1609979593538,4.00959,1204.9,1204.7,4.00959]
[1609979593939,2.325,1206.2,1204.7,4.00959]
[1609979594144,2.325,1206.2,1204.7,6.41459]
[1609979595539,4.00959,1204.8,1204.7,6.41459]
[1609979596243,4.00959,1204.8,1204.7,2.405]
[1609979597845,2.8916,1205.9,1204.7,2.405]
[1609979598245,2.325,1206.2,1204.7,2.405]
[1609979598446,2.77238808,1209.9,1204.7,2.405]
[1609979598757,5.9398,1208.1,1204.7,2.405]
[1609979598948,30.0,1208.0,1204.7,2.405]
[1609979599148,30.0,1208.0,1204.4,4.00959]
[1609979599358,32.1212,1208.0,1204.4,4.00959]
[1609979599646,4.00959,1205.1,1204.9,4.00959]
[1609979599847,32.1212,1208.0,1204.9,4.00959]
[1609979600150,2.4055,1206.3,1204.9,6.37439]
[1609979601550,4.00959,1205.4,1205.1,4.00959]
[1609979601849,2.4055,1206.3,1205.1,4.00959]
[1609979602449,2.4055,1206.3,1204.9,2.3648]
[1609979602751,32.4055,1206.3,1204.9,2.3648]
[1609979603551,4.00959,1205.0,1204.9,2.3648]
[1609979605053,4.00959,1205.0,1201.9,5.793]
[1609979605554,4.00959,1204.8,1204.6,4.00959]
[1609979605954,3.0568,1206.0,1204.6,4.00959]
[1609979606154,3.0568,1206.0,1204.6,7.21449]
[1609979606556,2.4055,1206.3,1204.6,7.21449]
[1609979606755,30.0,1207.9,1204.6,7.21449]
[1609979607661,30.0,1207.9,1205.7,4.00959]
[1609979607862,30.0,1207.9,1205.7,6.66099]
[1609979608664,32.1212,1208.0,1205.7,6.66099]
[1609979609068,62.76,1206.4,1205.7,6.66099]
[1609979609262,2.936,1207.5,1205.7,6.66099]
[1609979609462,6.61,1207.5,1205.7,6.66099]
[1609979609662,4.00959,1207.0,1206.9,4.00959]
[1609979609969,4.00959,1207.0,1205.7,2.6514]
[1609979610163,3.674,1207.5,1205.7,2.6514]
[1609979610864,2.1212,1208.0,1205.7,2.6514]
[1609979611063,5.7945,1208.7,1205.7,2.6514]
[1609979611563,4.00959,1206.8,1206.5,4.00959]
[1609979611864,4.00959,1206.8,1205.7,2.6514]
[1609979612465,3.674,1207.6,1205.7,2.6514]
[1609979612865,3.674,1207.6,1204.8,6.0373]
[1609979613568,4.00959,1207.4,1207.2,4.00959]
[1609979613768,4.00959,1207.4,1204.8,6.0373]
[1609979614771,7.68359,1207.4,1204.8,6.0373]
[1609979615571,3.674,1207.4,1206.8,4.00959]
[1609979615771,3.674,1207.4,1206.8,6.95079]
[1609979616173,3.674,1207.4,1206.8,2.9412]
[1609979617572,4.00959,1206.9,1206.8,2.9412]
[1609979619572,4.00959,1206.9,1205.4,4.00959]
[1609979619972,7.24609,1206.9,1205.4,4.00959]
[1609979621672,4.00959,1206.2,1206.0,4.00959]
[1609979622472,11.051,1207.4,1206.0,4.00959]
[1609979622672,11.051,1207.4,1206.0,6.74479]
[1609979623673,11.051,1207.4,1206.2,4.00959]
[1609979625178,30.0,1208.5,1206.2,4.00959]
[1609979625777,4.00959,1206.5,1206.4,4.00959]
[1609979626982,4.00959,1206.5,1206.0,2.7352]
[1609979627682,4.00959,1206.1,1205.4,4.00959]
[1609979628884,4.00959,1206.1,1204.9,59.8397]
[1609979629783,4.00959,1205.0,1204.9,59.8397]
[1609979630183,5.65899,1205.0,1204.9,59.8397]
[1609979630383,4.00959,1205.0,1204.9,59.8397]
[1609979637295,4.00959,1205.0,1204.9,62.0139]
[1609979638095,4.00959,1205.0,1204.9,2.1742]
[1609979641000,2.726,1206.3,1204.9,2.1742]
[1609979641200,30.0,1206.4,1204.9,2.1742]
[1609979641701,4.00959,1205.0,1204.9,2.1742]
[1609979642202,4.00959,1205.0,1204.7,4.00959]
[1609979642403,79.0633,1206.5,1204.7,4.00959]
[1609979643704,4.00959,1205.0,1204.7,4.00959]
[1609979646704,49.0633,1206.5,1204.7,4.00959]
[1609979647506,5.9131,1206.6,1204.7,4.00959]
[1609979647507,67.4106,1206.4,1204.7,4.00959]
[1609979647705,4.00959,1205.3,1205.1,4.00959]
[1609979648005,4.00959,1205.3,1204.6,3.2049]
[1609979648205,4.00959,1205.3,1204.1,68.3183]
[1609979649705,4.00959,1205.3,1205.2,4.00959]
[1609979650007,4.00959,1205.3,1205.2,6.56889]
[1609979650707,67.4106,1206.4,1205.2,6.56889]
[1609979652007,4.00959,1206.3,1206.0,4.00959]
[1609979652509,67.4106,1206.4,1206.0,4.00959]
[1609979652808,67.4106,1206.4,1206.0,6.46019]
[1609979653808,67.4106,1206.4,1206.3,4.00959]
[1609979654009,67.4106,1206.4,1206.3,6.56239]
[1609979655815,67.4106,1206.4,1206.3,2.5528]
[1609979656916,3.674,1207.6,1206.3,2.5528]
[1609979657817,4.00959,1206.7,1206.6,4.00959]
[1609979658817,4.00959,1206.7,1206.3,2.5528]
[1609979659119,4.00959,1206.7,1206.0,53.7021]
[1609979659817,4.00959,1206.7,1206.6,4.00959]
[1609979660017,2.9039,1207.4,1206.6,4.00959]
[1609979660617,1.6363,1207.4,1206.6,4.00959]
[1609979661119,3.674,1207.6,1206.6,4.00959]
[1609979661920,4.00959,1207.1,1206.8,4.00959]
[1609979662521,4.00959,1207.1,1206.5,2.8018]
[1609979663822,4.00959,1207.1,1207.0,4.00959]
[1609979666331,4.00959,1207.1,1206.6,46.7631]
[1609979667929,2.0648,1207.3,1206.7,4.00959]
[1609979668132,3.674,1207.6,1206.7,4.00959]
[1609979668430,3.674,1207.6,1206.6,46.7631]
[1609979668929,5.7519,1207.6,1206.6,46.7631]
[1609979669130,5.7519,1207.6,1206.5,2.8018]
[1609979669331,5.7519,1207.6,1206.0,2.4506]
[1609979669533,5.7519,1207.6,1205.9,58.8113]
[1609979669831,4.00959,1206.8,1206.5,4.00959]
[1609979670232,2.8162,1207.3,1206.5,4.00959]
[1609979671332,3.674,1207.6,1206.5,4.00959]
[1609979671931,4.00959,1207.0,1206.8,4.00959]
[1609979672232,4.00959,1207.0,1205.9,58.8113]
[1609979678041,4.00959,1207.0,1206.7,4.00959]
[1609979682047,4.00959,1206.8,1206.7,4.00959]
[1609979682247,4.00959,1206.8,1205.9,58.8113]
[1609979683948,4.00959,1206.8,1206.7,4.00959]
[1609979687149,4.00959,1206.8,1205.9,58.8113]
[1609979687951,4.00959,1206.6,1206.0,4.00959]
[1609979689652,4.00959,1206.6,1205.9,58.8113]
[1609979689952,4.00959,1206.2,1205.9,58.8113]
[1609979692056,4.00959,1206.0,1205.9,58.8113]
[1609979694363,4.00959,1206.0,1205.4,4.00959]
[1609979694560,4.00959,1206.0,1205.2,62.3098]
[1609979696062,4.00959,1205.3,1205.2,62.3098]
[1609979699064,4.00959,1205.3,1205.2,2.5593]
[1609979699464,4.00959,1205.3,1203.4,5.9854]
[1609979700067,4.00959,1204.3,1204.2,4.00959]
[1609979700367,4.00959,1204.3,1203.4,5.9854]
[1609979701170,30.0,1206.1,1203.4,5.9854]
[1609979701366,32.3806,1206.2,1203.4,8.7534]
[1609979702267,32.3806,1206.2,1204.6,4.00959]
[1609979702468,30.0,1207.0,1204.6,6.62859]
[1609979702674,8.4993,1206.5,1204.6,6.62859]
[1609979702874,5.3156,1206.5,1204.6,6.62859]
[1609979703271,3.674,1206.5,1204.6,6.62859]
[1609979703769,3.674,1206.5,1205.0,46.4921]
[1609979703973,3.674,1206.5,1205.0,49.3673]
[1609979704270,4.00959,1205.8,1205.7,4.00959]
[1609979704469,5.65019,1205.8,1205.7,4.00959]
[1609979704670,1.6406,1205.8,1205.7,4.00959]
[1609979704870,3.674,1206.5,1205.7,4.00959]
[1609979705072,3.674,1206.5,1205.7,7.23459]
[1609979706071,4.00959,1206.4,1206.3,4.00959]
[1609979706271,4.00959,1206.4,1205.7,3.225]
[1609979708173,3.674,1206.5,1205.8,4.00959]
[1609979708574,3.674,1206.5,1205.7,3.225]
[1609979710076,4.00959,1205.9,1205.7,3.225]
[1609979710475,4.00959,1205.9,1205.6,4.00959]
[1609979710679,4.00959,1205.9,1205.0,49.3673]
[1609979711878,33.674,1206.5,1205.0,49.3673]
[1609979712078,3.674,1206.5,1205.5,4.00959]
[1609979714186,3.674,1206.5,1206.4,4.00959]
[1609979714788,4.00959,1206.9,1205.3,68.7998]
[1609979715989,34.00959,1206.9,1205.3,68.7998]
[1609979716190,4.00959,1205.8,1205.5,4.00959]
[1609979716691,37.377,1206.9,1205.5,4.00959]
[1609979717091,7.377,1206.9,1205.5,4.00959]
[1609979718191,4.00959,1205.6,1205.5,4.00959]
[1609979718693,5.66179,1205.6,1205.5,4.00959]
[1609979718892,4.00959,1205.6,1205.5,4.00959]
[1609979719293,4.00959,1205.6,1205.3,68.7998]
[1609979720394,4.00959,1205.4,1205.3,68.7998]
[1609979721395,6.4037,1206.5,1205.3,68.7998]
[1609979721897,3.674,1206.5,1205.3,68.7998]
[1609979722095,4.00959,1205.7,1205.3,72.80939]
[1609979722497,4.00959,1205.7,1205.3,4.00959]
[1609979722697,1.6738,1206.4,1205.3,4.00959]
[1609979722897,5.3557,1206.5,1205.3,4.00959]
[1609979724299,4.00959,1205.9,1205.5,4.00959]
[1609979724500,3.674,1206.5,1205.5,4.00959]
[1609979725298,1.6802,1206.5,1205.5,4.00959]
[1609979725800,7.377,1206.9,1205.5,4.00959]
[1609979726201,4.00959,1206.9,1206.3,4.00959]
[1609979727699,4.00959,1206.9,1205.1,5.8711]
[1609979728302,4.00959,1206.4,1205.9,4.00959]
[1609979728501,4.00959,1206.4,1205.0,2.8752]
[1609979728702,4.00959,1206.4,1204.7,11.7318]
[1609979729101,4.00959,1206.4,1204.8,60.2364]
[1609979729303,7.68359,1206.4,1204.8,60.2364]
[1609979730303,4.00959,1205.7,1205.6,4.00959]
[1609979731907,3.674,1206.4,1205.6,4.00959]
[1609979732207,32.909,1207.4,1205.6,4.00959]
[1609979732208,4.00959,1206.1,1205.6,4.00959]
[1609979732909,33.674,1207.4,1205.6,4.00959]
[1609979733108,3.674,1207.4,1205.6,4.00959]
[1609979734209,4.00959,1206.5,1206.1,4.00959]
[1609979735209,3.674,1207.4,1206.1,4.00959]
[1609979735610,3.674,1207.4,1204.8,60.2364]
[1609979736211,4.00959,1206.2,1205.8,4.00959]
[1609979736709,3.674,1207.4,1205.8,4.00959]
[1609979738211,4.00959,1206.4,1206.1,4.00959]
[1609979738912,7.68359,1206.4,1204.8,60.2364]
[1609979739111,4.00959,1206.4,1204.8,60.2364]
[1609979739713,7.68359,1206.4,1204.8,60.2364]
[1609979740211,4.00959,1205.9,1205.4,4.00959]
[1609979741515,4.00959,1205.9,1205.5,61.2669]
[1609979741716,4.00959,1205.9,1205.5,63.7108]
[1609979742217,4.00959,1205.9,1205.6,4.00959]
[1609979744222,4.00959,1205.9,1205.8,4.00959]
[1609979744420,4.00959,1205.9,1205.5,63.7108]
[1609979750429,4.00959,1205.9,1205.7,4.00959]
[1609979752332,4.00959,1205.9,1205.5,63.7108]
[1609979754333,4.00959,1205.9,1205.7,4.00959]
[1609979754535,4.00959,1205.9,1205.5,63.7108]
[1609979756333,4.00959,1205.6,1205.5,67.72039]
[1609979758235,4.00959,1205.6,1205.5,63.7108]
[1609979759335,30.0,1207.4,1205.5,63.7108]
[1609979760136,30.0,1207.4,1205.8,62.0031]
[1609979760338,7.053,1207.5,1205.8,62.0031]
[1609979760540,3.674,1207.5,1205.9,4.00959]
[1609979761836,3.674,1207.5,1205.8,62.0031]
[1609979762135,33.674,1207.5,1205.8,62.0031]
[1609979762435,4.00959,1205.9,1205.8,62.0031]
[1609979769448,4.00959,1205.9,1205.7,4.00959]
[1609979769650,4.00959,1205.9,1205.7,54.28309]
[1609979770850,36.4987,1207.5,1205.7,54.28309]
[1609979771552,6.4987,1207.5,1205.7,54.28309]
[1609979772250,3.674,1207.5,1205.7,54.28309]
[1609979772550,4.00959,1206.4,1206.3,4.00959]
[1609979774453,4.00959,1206.4,1206.0,4.00959]
[1609979774652,4.00959,1206.4,1205.7,50.2735]
[1609979776464,4.00959,1205.8,1205.7,54.28309]
[1609979776755,4.00959,1205.8,1205.7,50.2735]
[1609979778856,4.00959,1205.8,1205.5,2.4439]
[1609979779055,4.00959,1205.8,1205.3,58.7125]
[1609979780562,30.0,1207.2,1205.3,58.7125]
[1609979780856,30.0,1207.2,1205.3,61.1895]
[1609979782660,4.00959,1205.4,1205.3,61.1895]
[1609979783359,30.0,1207.2,1205.3,61.1895]
[1609979784458,4.00959,1205.5,1205.4,4.00959]
[1609979784659,4.00959,1205.5,1205.3,61.1895]
[1609979785459,30.0,1207.2,1205.3,61.1895]
[1609979786061,90.0632,1207.3,1205.3,61.1895]
[1609979786560,4.00959,1205.9,1205.7,4.00959]
[1609979787060,4.00959,1205.9,1205.3,61.1895]
[1609979788263,4.00959,1205.9,1205.5,49.7136]
[1609979790562,4.00959,1205.9,1205.8,4.00959]
[1609979792363,4.00959,1205.9,1205.5,49.7136]
[1609979792562,4.00959,1205.6,1205.5,49.7136]
[1609979795461,34.00959,1205.6,1205.5,49.7136]
[1609979796462,4.00959,1205.6,1205.5,49.7136]
[1609979797664,4.00959,1205.6,1205.3,2.477]
[1609979797864,4.00959,1205.6,1204.7,55.9498]
[1609979798569,4.00959,1204.8,1204.7,55.9498]
[1609979799672,4.00959,1204.8,1204.6,2.619]
[1609979799870,4.00959,1204.8,1199.0,5.8484]
[1609979800070,4.00959,1204.8,1199.1,30.0]
[1609979800271,30.0,1204.7,1199.1,30.0]
[1609979800671,30.0,1204.7,1202.4,4.00959]
[1609979800970,30.0,1204.7,1202.4,6.52479]
[1609979801270,30.0,1205.3,1202.4,6.52479]
[1609979802671,4.00959,1202.5,1202.4,6.52479]
[1609979803672,30.0,1205.3,1202.4,6.52479]
[1609979804071,30.0,1205.3,1202.4,2.5152]
[1609979804379,31.6758,1205.3,1202.4,2.5152]
[1609979804571,30.0,1205.3,1202.4,2.5152]
[1609979804772,4.00959,1202.5,1202.4,2.5152]
[1609979806076,4.00959,1202.5,1201.7,52.3428]
[1609979806679,4.00959,1202.5,1202.4,4.00959]
[1609979806879,4.00959,1202.5,1202.4,2.1077]
[1609979807178,30.0,1204.6,1202.4,2.1077]
[1609979807778,30.0,1205.3,1202.4,2.1077]
[1609979808879,4.00959,1203.3,1203.0,4.00959]
[1609979809179,33.674,1205.3,1203.0,4.00959]
[1609979809381,33.674,1205.3,1203.0,3.0003]
[1609979810479,3.674,1205.3,1203.0,3.0003]
[1609979810881,4.00959,1203.7,1203.6,4.00959]
[1609979811081,3.674,1205.3,1203.6,4.00959]
[1609979811291,3.674,1205.3,1203.6,2.1372]
[1609979812583,33.674,1205.3,1203.6,2.1372]
[1609979812783,4.00959,1203.7,1203.6,2.1372]
[1609979816584,4.00959,1203.7,1203.0,3.0003]
[1609979816783,4.00959,1203.1,1202.9,4.00959]
[1609979817887,4.00959,1203.1,1202.6,50.8002]
[1609979818988,59.1932,1203.5,1202.7,4.00959]
[1609979819190,30.0,1204.3,1202.7,4.00959]
[1609979819389,30.0,1204.3,1202.7,7.06919]
[1609979820089,30.0,1204.3,1202.7,3.0596]
[1609979820291,30.0,1204.2,1202.7,3.0596]
[1609979820788,4.00959,1202.8,1202.7,3.0596]
[1609979822495,3.0185,1205.0,1202.7,3.0596]
[1609979822793,30.0,1205.2,1202.7,3.0596]
[1609979822794,4.00959,1203.3,1203.0,4.00959]
[1609979823994,4.00959,1203.3,1202.7,3.0596]
[1609979824298,4.00959,1203.3,1202.4,2.1077]
[1609979824493,4.00959,1203.3,1201.6,5.6887]
[1609979824894,4.00959,1202.7,1201.5,5.6459]
[1609979826803,30.0,1204.4,1202.2,4.00959]
[1609979827101,30.0,1204.4,1202.2,7.20299]
[1609979828302,30.0,1204.4,1202.2,3.1934]
[1609979828802,4.00959,1202.3,1202.2,3.1934]
[1609979832105,4.00959,1202.3,1197.9,30.0]
[1609979832507,4.00959,1202.3,1197.8,30.0]
[1609979832910,7.377,1204.1,1201.6,4.00959]
[1609979833112,7.377,1204.1,1201.6,7.00629]
[1609979834912,4.00959,1203.0,1202.8,4.00959]
[1609979836411,4.00959,1203.0,1201.8,6.0688]
[1609979836912,4.00959,1203.0,1202.7,4.00959]
[1609979837112,4.00959,1203.0,1202.7,2.0677]
[1609979839012,4.00959,1202.8,1202.7,2.0677]
[1609979839713,7.377,1204.1,1202.7,2.0677]
[1609979840316,6.1236,1207.9,1202.7,2.0677]
[1609979840516,3.674,1204.2,1202.7,2.0677]
[1609979840817,2.2297,1206.4,1202.7,2.0677]
[1609979841017,4.00959,1204.1,1204.0,4.00959]
[1609979841920,22.043,1206.4,1204.0,4.00959]
[1609979843023,4.00959,1204.2,1204.0,4.00959]
[1609979843521,22.043,1206.4,1204.0,4.00959]
[1609979844723,22.043,1206.4,1204.0,62.30749]
[1609979844921,4.00959,1205.2,1204.0,58.2979]
[1609979846930,4.00959,1205.2,1204.9,4.00959]
[1609979847128,4.00959,1205.2,1204.0,58.2979]
[1609979848934,22.043,1206.4,1204.9,4.00959]
[1609979849133,22.043,1206.4,1202.7,2.0677]
[1609979849336,22.043,1206.4,1202.4,5.6852]
[1609979850937,4.00959,1205.1,1204.8,4.00959]
[1609979851438,22.043,1206.4,1204.8,4.00959]
[1609979851636,22.043,1206.4,1204.8,2.1981]
[1609979853137,4.00959,1205.3,1205.0,4.00959]
[1609979853337,4.00959,1205.3,1204.8,2.1981]
[1609979854741,75.1105,1206.4,1204.8,2.1981]
[1609979855141,4.00959,1205.6,1205.3,4.00959]
[1609979856544,67.7335,1206.4,1205.3,4.00959]
[1609979856742,64.0595,1206.4,1205.3,4.00959]
[1609979857143,64.0595,1206.4,1204.8,2.1981]
[1609979857344,64.0595,1206.4,1204.3,5.9132]
[1609979857746,75.1105,1206.4,1204.3,5.9132]
[1609979858246,75.1105,1206.4,1204.2,58.4954]
[1609979858846,105.1105,1206.4,1204.2,58.4954]
[1609979859047,4.00959,1204.5,1204.2,62.50499]
[1609979859246,4.00959,1204.5,1204.2,58.4954]
[1609979860845,105.1105,1206.4,1204.2,58.4954]
[1609979861045,4.00959,1204.5,1204.2,62.50499]
[1609979862447,105.1105,1206.4,1204.2,62.50499]
[1609979863046,4.00959,1204.4,1204.2,62.50499]
[1609979863447,4.00959,1204.4,1204.2,4.00959]
[1609979863647,58.9581,1205.5,1204.2,4.00959]
[1609979865050,4.00959,1204.8,1204.5,4.00959]
[1609979865653,4.00959,1204.8,1203.4,53.0524]
[1609979867153,58.9581,1205.5,1203.4,53.0524]
[1609979869160,4.00959,1204.4,1204.2,4.00959]
[1609979869461,4.00959,1204.4,1203.4,53.0524]
[1609979871161,4.00959,1203.5,1203.4,53.0524]
[1609979872861,4.00959,1203.5,1202.7,59.9645]
[1609979873062,4.00959,1202.9,1202.7,59.9645]
[1609979875667,6.1015,1204.7,1202.7,59.9645]
[1609979877169,4.00959,1203.7,1203.4,4.00959]
[1609979877370,4.00959,1203.7,1202.7,59.9645]
[1609979878971,4.00959,1203.7,1202.5,47.0576]
[1609979879170,93.3214,1205.0,1203.2,4.00959]
[1609979879171,4.00959,1203.5,1203.2,4.00959]
[1609979880372,63.3214,1205.0,1203.2,4.00959]
[1609979880771,93.3214,1205.0,1203.2,4.00959]
[1609979881072,4.00959,1204.0,1203.8,4.00959]
[1609979881473,93.3214,1205.0,1203.8,4.00959]
[1609979881974,63.3214,1205.0,1203.8,4.00959]
[1609979882372,7.377,1205.1,1203.8,4.00959]
[1609979883072,4.00959,1204.5,1204.4,4.00959]
[1609979883773,7.377,1205.1,1204.4,4.00959]
[1609979884878,7.377,1205.1,1204.4,6.68479]
[1609979885078,4.00959,1204.9,1204.7,4.00959]
[1609979885480,4.00959,1204.9,1204.4,2.6752]
[1609979887079,4.00959,1204.9,1204.6,4.00959]
[1609979887479,7.377,1205.1,1204.6,4.00959]
[1609979889180,7.377,1205.1,1204.9,4.00959]
[1609979891687,4.00959,1205.6,1204.9,4.00959]
[1609979893092,4.00959,1205.6,1205.5,4.00959]
[1609979893989,22.043,1206.4,1205.5,4.00959]
[1609979894289,11.051,1206.4,1205.5,3.98459]
[1609979895193,15.06059,1206.4,1206.2,4.00959]
[1609979895493,4.00959,1206.4,1206.2,4.00959]
[1609979896094,48.6853,1206.7,1206.2,4.00959]
[1609979896795,48.6853,1206.7,1204.6,5.5676]
[1609979896995,52.3593,1206.7,1204.6,5.5676]
[1609979897195,59.7363,1206.7,1204.5,5.902]
[1609979898795,52.3593,1206.7,1204.5,5.902]
[1609979899296,52.69489,1206.7,1206.4,4.00959]
[1609979899497,4.00959,1206.7,1204.5,63.9763]
[1609979899697,4.00959,1206.7,1204.5,5.902]
[1609979900700,7.68359,1206.7,1204.5,5.902]
[1609979901399,4.00959,1205.9,1205.6,4.00959]
[1609979901600,3.674,1206.7,1205.6,4.00959]
[1609979901801,22.043,1207.9,1205.6,4.00959]
[1609979903206,4.00959,1206.1,1205.8,4.00959]
[1609979905203,4.00959,1205.9,1205.8,4.00959]
[1609979906106,22.043,1207.9,1205.8,4.00959]
[1609979907308,22.043,1207.9,1206.7,4.00959]
[1609979907709,22.043,1207.9,1204.6,6.0206]
[1609979909316,22.043,1207.9,1206.6,4.00959]
[1609979909514,22.043,1207.9,1204.6,6.0206]
[1609979911221,22.043,1207.9,1206.7,4.00959]
[1609979913221,4.00959,1206.8,1206.7,4.00959]
[1609979914823,22.043,1207.9,1206.7,4.00959]
[1609979915327,22.043,1207.9,1207.0,4.00959]
[1609979915525,11.051,1207.9,1207.0,4.00959]
[1609979915723,11.051,1207.9,1204.6,6.0206]
[1609979915924,22.043,1207.9,1204.6,6.0206]
[1609979917326,4.00959,1207.1,1206.7,4.00959]
[1609979919328,4.00959,1207.1,1206.9,4.00959]
[1609979921334,4.00959,1207.1,1206.7,4.00959]
[1609979923336,4.00959,1206.8,1206.7,4.00959]
[1609979926336,4.00959,1206.8,1204.6,6.0206]
[1609979926537,7.68359,1206.8,1204.6,6.0206]